bitfinex/quotes_BTCUSD_20250920
["timestamp","ask_amount","ask_price","bid_price","bid_amount"]
[1758348041007,0.69965925,115880.0,115870.0,0.61830075]
[1758348045156,0.69965925,115880.0,115870.0,0.35042075]
[1758348045312,0.69965925,115880.0,115870.0,0.61830075]
[1758348045512,0.69965925,115880.0,115870.0,0.61330075]
[1758348045738,0.69965925,115880.0,115870.0,0.61430075]
[1758348046154,0.69965925,115880.0,115870.0,0.60630075]
[1758348047436,0.69965925,115880.0,115870.0,0.61230075]
[1758348048002,0.37768122,115880.0,115870.0,0.61230075]
[1758348048215,0.37768122,115880.0,115870.0,0.34442075]
[1758348048523,0.37768122,115880.0,115870.0,0.61230075]
[1758348050254,0.37768122,115880.0,115870.0,0.34442075]
[1758348050399,0.69965925,115880.0,115870.0,0.61230075]
[1758348051196,0.69965925,115880.0,115870.0,0.88040075]
[1758348053728,0.37768122,115880.0,115870.0,0.88040075]
[1758348054011,0.69965925,115880.0,115870.0,0.88040075]
[1758348055416,0.37768122,115880.0,115870.0,0.88040075]
[1758348060733,0.37453122,115880.0,115870.0,0.88040075]
[1758348061074,0.05255319,115880.0,115870.0,0.88040075]
[1758348061275,0.39177122,115880.0,115870.0,0.88040075]
[1758348061576,0.37453122,115880.0,115870.0,0.88040075]
[1758348063462,0.37453122,115880.0,115870.0,0.61252075]
[1758348063678,0.02634319,115880.0,115870.0,0.99210068]
[1758348063898,0.04358319,115880.0,115870.0,0.67012265]
[1758348064336,0.04358319,115880.0,115870.0,0.99210068]
[1758348064536,0.04358319,115880.0,115870.0,0.67012265]
[1758348064755,0.04358319,115880.0,115870.0,0.67016265]
[1758348066351,0.36556122,115880.0,115870.0,0.67016265]
[1758348066721,0.34832122,115880.0,115870.0,0.67016265]
[1758348068902,0.34832122,115880.0,115870.0,0.93826265]
[1758348071570,0.34832122,115880.0,115870.0,0.67034265]
[1758348071792,0.34832122,115880.0,115870.0,0.93826265]
[1758348074976,0.02634319,115880.0,115870.0,0.93826265]
[1758348075219,0.36556122,115880.0,115870.0,0.93826265]
[1758348075396,0.34832122,115880.0,115870.0,0.93826265]
[1758348077209,0.70024925,115880.0,115870.0,0.72170967]
[1758348077436,0.87284158,115880.0,115870.0,0.8943169]
[1758348078435,0.55086355,115880.0,115870.0,0.8943169]
[1758348081718,0.02834319,115880.0,115870.0,0.9188469]
[1758348081993,0.04358319,115880.0,115870.0,1.24396493]
[1758348083483,0.04358319,115880.0,115870.0,0.9219869]
[1758348083689,0.04358319,115880.0,115870.0,1.24396493]
[1758348094040,0.04358319,115880.0,115870.0,1.24404991]
[1758348095516,0.07265319,115880.0,115870.0,0.8942769]
[1758348095765,0.56730853,115880.0,115870.0,0.45374967]
[1758348095965,0.8961403,115880.0,115870.0,0.72166967]
[1758348096165,0.8961403,115880.0,115870.0,0.72156967]
[1758348096531,0.8961403,115880.0,115870.0,0.72056967]
[1758348096741,0.8961403,115880.0,115870.0,0.71456967]
[1758348096951,0.8981403,115880.0,115870.0,0.71456967]
[1758348097165,0.8981403,115880.0,115870.0,0.71956967]
[1758348097725,0.8981403,115880.0,115870.0,0.8921769]
[1758348097925,0.8981403,115880.0,115870.0,0.7988969]
[1758348099565,0.8981403,115880.0,115870.0,0.62628967]
[1758348101519,0.8981403,115880.0,115870.0,0.35818967]
[1758348101710,0.8981403,115880.0,115870.0,0.35822967]
[1758348103200,0.89813548,115880.0,115870.0,0.35822967]
[1758348105472,0.89813548,115880.0,115870.0,0.09026967]
[1758348105644,0.89813548,115880.0,115870.0,0.35818967]
[1758348107498,0.89813548,115880.0,115870.0,0.62628967]
[1758348115940,0.89503548,115880.0,115870.0,0.62628967]
[1758348117342,0.89503548,115880.0,115870.0,0.62837967]
[1758348120573,0.89503548,115880.0,115870.0,0.35836967]
[1758348120786,0.89823548,115880.0,115870.0,0.62632967]
[1758348121191,0.89503548,115880.0,115870.0,0.62632967]
[1758348121599,0.89807548,115880.0,115870.0,0.62632967]
[1758348121816,0.92337463,115880.0,115870.0,0.35822967]
[1758348122006,0.92337463,115880.0,115870.0,0.09026967]
[1758348122431,0.93955957,115880.0,115870.0,0.35822967]
[1758348123473,0.93955957,115880.0,115870.0,0.35322967]
[1758348123842,0.93755957,115880.0,115870.0,0.35522967]
[1758348124237,0.94555957,115880.0,115870.0,0.35522967]
[1758348126985,1.21359957,115880.0,115870.0,0.35522967]
[1758348130504,0.94555957,115880.0,115870.0,0.35522967]
[1758348130726,0.89149656,115880.0,115870.0,0.35522967]
[1758348130941,1.21355957,115880.0,115870.0,0.35522967]
[1758348132253,0.87531162,115880.0,115870.0,0.35522967]
[1758348132498,1.19737463,115880.0,115870.0,0.35522967]
[1758348134579,1.19433463,115880.0,115870.0,0.35522967]
[1758348136841,1.16933548,115880.0,115870.0,0.35522967]
[1758348138643,1.16933548,115880.0,115870.0,0.08726967]
[1758348140548,1.14814548,115880.0,115870.0,0.08726967]
[1758348140763,1.17237548,115880.0,115870.0,0.08726967]
[1758348141178,1.1885587,115880.0,115870.0,0.08726967]
[1758348141661,1.18856057,115880.0,115870.0,0.08726967]
[1758348145349,1.16433057,115880.0,115870.0,0.08726967]
[1758348145554,1.18856057,115880.0,115870.0,0.08726967]
[1758348149553,1.18856057,115880.0,115870.0,0.11488967]
[1758348149554,1.16149057,115880.0,115870.0,0.11488967]
[1758348149762,0.89329057,115880.0,115870.0,0.11488967]
[1758348149973,1.16149057,115880.0,115870.0,0.11488967]
[1758348150591,1.16149057,115880.0,115870.0,0.11187967]
[1758348155430,1.18509057,115880.0,115870.0,0.11187967]
[1758348155870,1.5074697,115880.0,115870.0,0.08933967]
[1758348157927,1.50747659,115880.0,115870.0,0.08933967]
[1758348159989,1.23927659,115880.0,115870.0,0.08933967]
[1758348160143,1.50739659,115880.0,115870.0,0.08933967]
[1758348169959,1.50739659,115880.0,115870.0,0.08726967]
[1758348170187,1.48513766,115880.0,115870.0,0.08726967]
[1758348172544,0.84069552,115880.0,115870.0,0.08726967]
[1758348172759,1.48513766,115880.0,115870.0,0.08726967]
[1758348173847,1.50133967,115880.0,115870.0,0.08726967]
[1758348174070,1.49121341,115880.0,115870.0,0.08726967]
[1758348174812,1.48513766,115880.0,115870.0,0.08726967]
[1758348175645,1.50741542,115880.0,115870.0,0.08726967]
[1758348178497,1.50737542,115880.0,115870.0,0.08726967]
[1758348181901,0.85685753,115880.0,115870.0,0.08726967]
[1758348182105,1.5073754,115880.0,115870.0,0.08726967]
[1758348186663,1.5105954,115880.0,115870.0,0.08726967]
[1758348187133,1.53559455,115880.0,115870.0,0.08726967]
[1758348204633,1.5105954,115880.0,115870.0,0.08726967]
[1758348204943,1.53559455,115880.0,115870.0,0.08726967]
[1758348205980,1.53559459,115880.0,115870.0,0.08726967]
[1758348211250,1.51059544,115880.0,115870.0,0.08726967]
[1758348211453,1.53559459,115880.0,115870.0,0.08726967]
[1758348213921,1.53559458,115880.0,115870.0,0.08726967]
[1758348217839,1.21337063,115880.0,115870.0,0.08726967]
[1758348222073,1.21337065,115880.0,115870.0,0.08726967]
[1758348222546,1.21015065,115880.0,115870.0,0.08726967]
[1758348225469,1.18647065,115880.0,115870.0,0.08933967]
[1758348225716,1.18647065,115880.0,115870.0,0.11300967]
[1758348226627,1.18647065,115880.0,115870.0,0.08933967]
[1758348226815,1.21144065,115880.0,115870.0,0.08933967]
[1758348235231,1.1864415,115880.0,115870.0,0.08933967]
[1758348235456,1.21144065,115880.0,115870.0,0.08933967]
[1758348236040,1.18916286,115880.0,115870.0,0.08933967]
[1758348236243,1.21144072,115880.0,115870.0,0.08933967]
[1758348236797,1.20536494,115880.0,115870.0,0.08933967]
[1758348237033,1.18916286,115880.0,115870.0,0.08933967]
[1758348237256,1.19523863,115880.0,115870.0,0.08933967]
[1758348237914,1.18916286,115880.0,115870.0,0.08933967]
[1758348239538,1.21144072,115880.0,115870.0,0.08933967]
[1758348239731,1.20536494,115880.0,115870.0,0.08933967]
[1758348240180,1.18916286,115880.0,115870.0,0.08933967]
[1758348240405,1.21144072,115880.0,115870.0,0.08933967]
[1758348240624,0.62122253,115880.0,115870.0,0.08933967]
[1758348240843,1.16147157,115880.0,115870.0,0.11532967]
[1758348241085,1.16147157,115880.0,115870.0,0.11231967]
[1758348242116,1.18629157,115880.0,115870.0,0.08933967]
[1758348247789,1.21129072,115880.0,115870.0,0.08933967]
[1758348249322,0.88907253,115880.0,115870.0,0.08933967]
[1758348249781,1.21129072,115880.0,115870.0,0.08933967]
[1758348261071,0.88907253,115880.0,115870.0,0.08933967]
[1758348261319,1.21129072,115880.0,115870.0,0.08933967]
[1758348266012,1.18629157,115880.0,115870.0,0.08933967]
[1758348268723,1.18629152,115880.0,115870.0,0.08933967]
[1758348277839,1.50844401,115880.0,115870.0,0.08933967]
[1758348280711,1.508444,115880.0,115870.0,0.08933967]
[1758348282470,0.39662099,115880.0,115870.0,0.58721224]
[1758348282701,0.38041892,115880.0,115870.0,0.2883169]
[1758348282927,0.70260426,115880.0,115870.0,0.2883169]
[1758348283125,0.38041892,115880.0,115870.0,0.2883169]
[1758348283572,0.70260426,115880.0,115870.0,0.2883169]
[1758348286792,0.38041892,115880.0,115870.0,0.2883169]
[1758348287000,0.70260426,115880.0,115870.0,0.2883169]
[1758348289656,0.97056426,115880.0,115870.0,0.2883169]
[1758348291994,0.64837892,115880.0,115870.0,0.2883169]
[1758348293701,0.38041892,115880.0,115870.0,0.2650269]
[1758348293905,0.38041892,115880.0,115870.0,0.2883169]
[1758348296374,0.38253892,115880.0,115870.0,0.2883169]
[1758348297312,0.38253892,115880.0,115870.0,0.5564169]
[1758348297938,0.70472426,115880.0,115870.0,0.8243769]
[1758348301736,0.38253892,115880.0,115870.0,0.8243769]
[1758348301938,0.70472426,115880.0,115870.0,0.8243769]
[1758348304673,0.38253892,115880.0,115870.0,0.8243769]
[1758348304878,0.70472426,115880.0,115870.0,0.8243769]
[1758348305509,0.87731659,115880.0,115870.0,0.8243769]
[1758348305945,0.87731659,115880.0,115870.0,0.8212969]
[1758348307011,0.87731659,115880.0,115870.0,0.5533369]
[1758348307221,0.90038659,115880.0,115870.0,0.5300469]
[1758348307434,0.90038659,115880.0,115870.0,0.7980069]
[1758348307867,1.16834659,115880.0,115870.0,0.7980069]
[1758348310057,1.16834659,115880.0,115870.0,0.8217669]
[1758348310264,1.14527659,115880.0,115870.0,0.8217669]
[1758348310447,0.87731659,115880.0,115870.0,0.8217669]
[1758348314483,0.87731266,115880.0,115870.0,0.8217669]
[1758348315855,0.87124086,115880.0,115870.0,0.8217669]
[1758348316091,0.87731256,115880.0,115870.0,0.8217669]
[1758348316849,0.70472023,115880.0,115870.0,0.8217669]
[1758348317283,0.87731256,115880.0,115870.0,0.8217669]
[1758348317691,0.55512722,115880.0,115870.0,0.8217669]
[1758348317893,0.87731256,115880.0,115870.0,0.8217669]
[1758348319441,0.87731243,115880.0,115870.0,0.8217669]
[1758348324337,0.7047201,115880.0,115870.0,0.8217669]
[1758348324736,0.87731243,115880.0,115870.0,0.8217669]
[1758348329243,0.87731243,115880.0,115870.0,0.8247469]
[1758348331458,0.87731351,115880.0,115870.0,0.8247469]
[1758348339190,0.55512817,115880.0,115870.0,0.8247469]
[1758348339380,0.87731351,115880.0,115870.0,0.8247469]
[1758348339808,0.55512817,115880.0,115870.0,0.8247469]
[1758348341873,0.38041584,115880.0,115870.0,0.8247469]
[1758348342028,0.55300817,115880.0,115870.0,0.8247469]
[1758348342485,0.38041584,115880.0,115870.0,0.8247469]
[1758348342891,0.38041584,115880.0,115870.0,0.8227469]
[1758348343334,0.37241584,115880.0,115870.0,0.8227469]
[1758348343578,0.54500817,115880.0,115870.0,0.8227469]
[1758348343783,0.54600817,115880.0,115870.0,0.8227469]
[1758348343968,0.37341584,115880.0,115870.0,0.8227469]
[1758348344389,0.37341584,115880.0,115870.0,0.8277469]
[1758348345465,0.54600817,115880.0,115870.0,0.8277469]
[1758348351160,0.54797817,115880.0,115870.0,0.8277469]
[1758348381421,0.54797817,115880.0,115870.0,0.8247669]
[1758348381629,0.54797817,115880.0,115870.0,0.8278169]
[1758348381832,0.87011532,115880.0,115870.0,0.8278169]
[1758348383477,0.54797817,115880.0,115870.0,0.8278169]
[1758348383890,0.87011532,115880.0,115870.0,0.8278169]
[1758348384788,0.54797817,115880.0,115870.0,0.8278169]
[1758348386469,0.87011532,115880.0,115870.0,0.8278169]
[1758348392883,0.54797817,115880.0,115870.0,0.8278169]
[1758348393089,0.87011532,115880.0,115870.0,0.8278169]
[1758348396321,0.86814532,115880.0,115870.0,0.8278169]
[1758348396755,0.54600817,115880.0,115870.0,0.8278169]
[1758348401862,0.8681446,115880.0,115870.0,0.8278169]
[1758348404469,0.54601062,115880.0,115870.0,0.8278169]
[1758348404768,0.8681446,115880.0,115870.0,0.8278169]
[1758348405838,0.86814385,115880.0,115870.0,0.8278169]
[1758348410166,0.54600987,115880.0,115870.0,0.8278169]
[1758348410407,0.86814385,115880.0,115870.0,0.8278169]
[1758348415203,0.54600987,115880.0,115870.0,0.8278169]
[1758348415459,0.86814385,115880.0,115870.0,0.8278169]
[1758348418576,0.54600987,115880.0,115870.0,0.8278169]
[1758348418808,0.86814385,115880.0,115870.0,0.8278169]
[1758348421721,0.37341754,115880.0,115870.0,0.8278169]
[1758348421928,0.69555152,115880.0,115870.0,0.8278169]
[1758348422576,0.86814385,115880.0,115870.0,0.8278169]
[1758348424600,0.86814348,115880.0,115870.0,0.8278169]
[1758348426183,0.87023348,115880.0,115870.0,0.8278169]
[1758348426593,0.5480995,115880.0,115870.0,0.8278169]
[1758348426797,0.87023348,115880.0,115870.0,0.8278169]
[1758348431169,0.87023348,115880.0,115870.0,0.5568069]
[1758348431385,0.87023348,115880.0,115870.0,0.8247269]
[1758348432045,0.87023348,115880.0,115870.0,0.5568069]
[1758348432467,0.87023348,115880.0,115870.0,0.8247269]
[1758348439538,0.5480995,115880.0,115870.0,0.8247269]
[1758348439714,0.87023348,115880.0,115870.0,0.8247269]
[1758348444857,0.87023348,115880.0,115870.0,0.8278069]
[1758348452466,0.87023446,115880.0,115870.0,0.8278069]
[1758348459946,0.54810048,115880.0,115870.0,0.8278069]
[1758348460235,0.8641595,115880.0,115870.0,0.8278069]
[1758348460459,0.87023447,115880.0,115870.0,0.8278069]
[1758348463848,0.8702457,115880.0,115870.0,0.8278069]
[1758348465699,0.54810049,115880.0,115870.0,0.8278069]
[1758348469399,0.54810049,115880.0,115870.0,0.38727967]
[1758348469609,0.54810049,115880.0,115870.0,0.8278069]
[1758348471905,0.8702457,115880.0,115870.0,0.8278069]
[1758348486770,0.8702457,115880.0,115870.0,0.5598869]
[1758348486959,0.8702457,115880.0,115870.0,0.8277669]
[1758348502240,0.54601049,115880.0,115870.0,0.8277669]
[1758348502894,0.86208073,115880.0,115870.0,0.8277669]
[1758348503084,0.37341824,115880.0,115870.0,0.8277669]
[1758348503559,0.54601057,115880.0,115870.0,0.8277669]
[1758348504321,0.37341824,115880.0,115870.0,0.8277669]
[1758348504731,0.54601057,115880.0,115870.0,0.8277669]
[1758348505765,0.37341824,115880.0,115870.0,0.8277669]
[1758348506903,0.37341815,115880.0,115870.0,0.8277669]
[1758348508583,0.54601048,115880.0,115870.0,0.8277669]
[1758348511053,0.37341815,115880.0,115870.0,0.8277669]
[1758348511454,0.54601048,115880.0,115870.0,0.8277669]
[1758348511936,0.37341815,115880.0,115870.0,0.8277669]
[1758348512272,0.89518484,115880.0,115870.0,0.38419967]
[1758348512484,0.89518484,115880.0,115870.0,0.8246869]
[1758348513783,0.89518484,115880.0,115870.0,0.5568069]
[1758348514290,0.89518484,115880.0,115870.0,0.8251269]
[1758348514511,0.89518484,115880.0,115870.0,0.5568069]
[1758348514697,0.89518484,115880.0,115870.0,0.8251269]
[1758348516626,0.89518484,115880.0,115870.0,0.8013669]
[1758348516856,0.92290484,115880.0,115870.0,0.62875967]
[1758348517320,0.92290484,115880.0,115870.0,0.8013669]
[1758348517941,0.91969484,115880.0,115870.0,0.8013669]
[1758348518804,0.9196943,115880.0,115870.0,0.8013669]
[1758348520044,0.59754909,115880.0,115870.0,0.8013669]
[1758348520250,0.8951843,115880.0,115870.0,0.8250769]
[1758348523724,0.8951972,115880.0,115870.0,0.8250769]
[1758348529216,1.21735531,115880.0,115870.0,0.8250769]
[1758348532642,1.21735531,115880.0,115870.0,0.36043967]
[1758348532772,1.22007616,115880.0,115870.0,0.35836967]
[1758348532979,1.22007616,115880.0,115870.0,0.62656967]
[1758348534728,1.22007616,115880.0,115870.0,0.35846967]
[1758348539776,1.48835616,115880.0,115870.0,0.35846967]
[1758348542690,1.85177076,115880.0,115870.0,0.09026967]
[1758348544795,1.58349076,115880.0,115870.0,0.09026967]
[1758348544991,1.85177076,115880.0,115870.0,0.09026967]
[1758348546028,1.58349076,115880.0,115870.0,0.09026967]
[1758348546249,1.85197076,115880.0,115870.0,0.09026967]
[1758348546583,0.61701643,115880.0,115870.0,0.09026967]
[1758348546786,1.52981265,115880.0,115870.0,0.09026967]
[1758348547633,1.26133265,115880.0,115870.0,0.09026967]
[1758348547848,1.52981265,115880.0,115870.0,0.09026967]
[1758348549076,1.52985265,115880.0,115870.0,0.09026967]
[1758348549339,1.5048535,115880.0,115870.0,0.09026967]
[1758348549510,1.50482727,115880.0,115870.0,0.09026967]
[1758348553596,1.23630727,115880.0,115870.0,0.09026967]
[1758348553808,1.50486727,115880.0,115870.0,0.09026967]
[1758348554239,1.23630727,115880.0,115870.0,0.09026967]
[1758348554686,1.50482727,115880.0,115870.0,0.09026967]
[1758348555488,1.23630727,115880.0,115870.0,0.09026967]
[1758348555674,1.50482727,115880.0,115870.0,0.09026967]
[1758348564495,1.52982642,115880.0,115870.0,0.09026967]
[1758348569412,1.52983607,115880.0,115870.0,0.09026967]
[1758348573550,1.52985337,115880.0,115870.0,0.09026967]
[1758348583839,1.20776905,115880.0,115870.0,0.09026967]
[1758348586392,1.2077693,115880.0,115870.0,0.09026967]
[1758348593386,1.20776936,115880.0,115870.0,0.09026967]
[1758348600156,1.18277021,115880.0,115870.0,0.09026967]
[1758348600342,1.20776936,115880.0,115870.0,0.09026967]
[1758348601210,1.20777586,115880.0,115870.0,0.09026967]
[1758348628114,1.20777575,115880.0,115870.0,0.09026967]
[1758348645875,1.53001828,115880.0,115870.0,0.09026967]
[1758348655707,1.52680828,115880.0,115870.0,0.09026967]
[1758348661467,1.52680829,115880.0,115870.0,0.09026967]
[1758348662103,0.88233361,115880.0,115870.0,0.09026967]
[1758348662311,1.52680829,115880.0,115870.0,0.09237967]
[1758348665150,1.52632829,115880.0,115870.0,0.09237967]
[1758348665589,1.50175829,115880.0,115870.0,0.11576967]
[1758348666024,1.23371829,115880.0,115870.0,0.11576967]
[1758348666249,1.50175829,115880.0,115870.0,0.11576967]
[1758348672912,1.52591829,115880.0,115870.0,0.11576967]
[1758348675585,1.52591829,115880.0,115870.0,0.09237967]
[1758348676617,1.52591829,115880.0,115870.0,0.12737967]
[1758348678182,1.5259183,115880.0,115870.0,0.12737967]
[1758348682216,1.4909183,115880.0,115870.0,0.09237967]
[1758348682442,1.51686832,115880.0,115870.0,0.09237967]
[1758348683701,1.51686832,115880.0,115870.0,0.09026967]
[1758348688503,1.51990832,115880.0,115870.0,0.09026967]
[1758348693486,1.51990843,115880.0,115870.0,0.09026967]
[1758348696799,1.51686843,115880.0,115870.0,0.09026967]
[1758348698798,1.50066548,115880.0,115870.0,0.09026967]
[1758348698998,1.51686843,115880.0,115870.0,0.09026967]
[1758348705806,1.19462276,115880.0,115870.0,0.09026967]
[1758348712849,1.19766276,115880.0,115870.0,0.09026967]
[1758348718873,1.19766275,115880.0,115870.0,0.09026967]
[1758348721436,1.1814598,115880.0,115870.0,0.09026967]
[1758348721654,1.19766273,115880.0,115870.0,0.09026967]
[1758348731175,1.17266358,115880.0,115870.0,0.09026967]
[1758348731480,1.19888743,115880.0,115870.0,0.09026967]
[1758348736963,0.93084743,115880.0,115870.0,0.09026967]
[1758348737185,1.19884743,115880.0,115870.0,0.09026967]
[1758348737537,1.17262358,115880.0,115870.0,0.08526967]
[1758348737740,1.19884743,115880.0,115870.0,0.08526967]
[1758348737968,1.17262358,115880.0,115870.0,0.08526967]
[1758348748466,1.19884742,115880.0,115870.0,0.08526967]
[1758348753511,1.17262358,115880.0,115870.0,0.08526967]
[1758348753713,1.19884742,115880.0,115870.0,0.08526967]
[1758348761814,1.19884746,115880.0,115870.0,0.08526967]
[1758348765442,1.19580746,115880.0,115870.0,0.08526967]
[1758348765854,1.51808813,115880.0,115870.0,0.08526967]
[1758348771030,1.49186429,115880.0,115870.0,0.08526967]
[1758348771241,1.51808813,115880.0,115870.0,0.08526967]
[1758348777994,0.87662845,115880.0,115870.0,0.08526967]
[1758348778240,1.84339297,115880.0,115870.0,0.07562029]
[1758348778464,1.52113813,115880.0,115870.0,0.005]
[1758348778871,0.51260723,115870.0,115860.0,0.01989599]
[1758348779176,1.15202317,115870.0,115860.0,0.10516566]
[1758348779446,1.15202317,115870.0,115860.0,0.10717566]
[1758348779641,1.17797319,115870.0,115860.0,0.10717566]
[1758348780098,1.17797319,115870.0,115860.0,0.11317566]
[1758348780273,1.17797319,115870.0,115860.0,0.11517566]
[1758348780849,1.18005319,115870.0,115860.0,0.11517566]
[1758348781069,1.18005319,115870.0,115860.0,0.11317566]
[1758348781504,1.18105319,115870.0,115860.0,0.10717566]
[1758348781683,1.50330803,115870.0,115860.0,0.10717566]
[1758348782690,1.50330803,115870.0,115860.0,0.11017566]
[1758348785049,1.50330803,115870.0,115860.0,0.09027967]
[1758348785266,1.87511517,115870.0,115860.0,0.003]
[1758348785888,0.51265193,115840.0,115830.0,0.12094]
[1758348786102,1.18963975,115840.0,115830.0,0.08870962]
[1758348786311,1.18963975,115840.0,115830.0,0.09072962]
[1758348786515,1.18963975,115840.0,115830.0,0.11527962]
[1758348786725,1.21559345,115840.0,115830.0,0.11527962]
[1758348787764,1.21559345,115840.0,115830.0,0.12027962]
[1758348787968,1.21559345,115840.0,115830.0,0.12327962]
[1758348789680,1.22425938,115840.0,115830.0,0.12327962]
[1758348791359,1.49273938,115840.0,115830.0,0.12327962]
[1758348791491,1.49792938,115840.0,115830.0,0.09373962]
[1758348791693,1.49792938,115840.0,115830.0,0.12030962]
[1758348791897,1.49792938,115840.0,115830.0,0.09575962]
[1758348792105,1.52049938,115840.0,115830.0,0.09575962]
[1758348792650,1.52049938,115840.0,115830.0,0.09373962]
[1758348793623,1.52049938,115840.0,115830.0,0.08573962]
[1758348793624,1.5366587,115840.0,115830.0,0.08573962]
[1758348793827,1.5366587,115840.0,115830.0,0.08873962]
[1758348794285,1.5396587,115840.0,115830.0,0.08873962]
[1758348794525,1.53358259,115840.0,115830.0,0.08873962]
[1758348794765,1.53964069,115840.0,115830.0,0.08873962]
[1758348795289,1.5396328,115840.0,115830.0,0.08873962]
[1758348796294,1.52348137,115840.0,115830.0,0.08873962]
[1758348797397,1.25500137,115840.0,115830.0,0.08873962]
[1758348797616,1.52344137,115840.0,115830.0,0.08873962]
[1758348800064,1.25500137,115840.0,115830.0,0.08873962]
[1758348800280,1.5395789,115840.0,115830.0,0.08873962]
[1758348808177,1.5401289,115840.0,115830.0,0.08873962]
[1758348816964,1.54014533,115840.0,115830.0,0.08873962]
[1758348821403,1.54002533,115840.0,115830.0,0.08873962]
[1758348823525,1.27170533,115840.0,115830.0,0.08873962]
[1758348823728,1.24555337,115840.0,115830.0,0.09072962]
[1758348823956,1.51383337,115840.0,115830.0,0.11357962]
[1758348827395,0.57249166,115840.0,115830.0,0.11657962]
[1758348827719,1.21700134,115840.0,115830.0,0.11657962]
[1758348827938,1.16321164,115840.0,115830.0,0.11657962]
[1758348828125,1.16327785,115840.0,115830.0,0.11657962]
[1758348828356,1.16533785,115840.0,115830.0,0.11357962]
[1758348831058,0.89705785,115840.0,115830.0,0.11357962]
[1758348831268,1.16533785,115840.0,115830.0,0.11357962]
[1758348833870,1.16533787,115840.0,115830.0,0.11357962]
[1758348834471,1.16845787,115840.0,115830.0,0.11357962]
[1758348837124,0.84601789,115840.0,115830.0,0.11357962]
[1758348837336,1.16845787,115840.0,115830.0,0.11357962]
[1758348837553,1.19156787,115840.0,115830.0,0.11158962]
[1758348838667,1.2179699,115840.0,115830.0,0.11158962]
[1758348839195,1.1948599,115840.0,115830.0,0.11371962]
[1758348839850,1.2179699,115840.0,115830.0,0.11371962]
[1758348840362,1.2179699,115840.0,115830.0,0.11158962]
[1758348842242,1.2179699,115840.0,115830.0,0.08873962]
[1758348843349,0.89552992,115840.0,115830.0,0.08873962]
[1758348843582,1.2179699,115840.0,115830.0,0.08873962]
[1758348844750,1.2179699,115840.0,115830.0,0.11316962]
[1758348846591,1.21796981,115840.0,115830.0,0.11316962]
[1758348847769,1.21796981,115840.0,115830.0,0.08873962]
[1758348854130,1.19156778,115840.0,115830.0,0.08873962]
[1758348854332,1.21796981,115840.0,115830.0,0.08873962]
[1758348858410,1.21796975,115840.0,115830.0,0.08873962]
[1758348863621,1.19156772,115840.0,115830.0,0.08873962]
[1758348863820,1.21796975,115840.0,115830.0,0.08873962]
[1758348866352,1.21796967,115840.0,115830.0,0.08873962]
[1758348871526,1.19156764,115840.0,115830.0,0.08873962]
[1758348871766,1.21796967,115840.0,115830.0,0.08873962]
[1758348885776,1.19156764,115840.0,115830.0,0.08873962]
[1758348885970,1.21796967,115840.0,115830.0,0.08873962]
[1758348887837,1.54041107,115840.0,115830.0,0.08873962]
[1758348892857,0.89552969,115840.0,115830.0,0.08873962]
[1758348893008,1.54041107,115840.0,115830.0,0.08873962]
[1758348895752,1.54041114,115840.0,115830.0,0.08873962]
[1758348900859,1.51400911,115840.0,115830.0,0.08873962]
[1758348901064,1.54059933,115840.0,115830.0,0.08873962]
[1758348906142,1.27231933,115840.0,115830.0,0.08873962]
[1758348906342,1.54051933,115840.0,115830.0,0.08873962]
[1758348909513,1.27231933,115840.0,115830.0,0.08873962]
[1758348909672,1.54047933,115840.0,115830.0,0.08873962]
[1758348911694,1.54047933,115840.0,115830.0,0.11239962]
[1758348915504,1.54047933,115840.0,115830.0,0.08873962]
[1758348917303,1.54047927,115840.0,115830.0,0.08873962]
[1758348918099,0.89559789,115840.0,115830.0,0.08873962]
[1758348918300,1.54047927,115840.0,115830.0,0.08873962]
[1758348920272,0.89559789,115840.0,115830.0,0.08873962]
[1758348920470,1.54047927,115840.0,115830.0,0.08873962]
[1758348920884,1.54047912,115840.0,115830.0,0.08873962]
[1758348933017,1.5138889,115840.0,115830.0,0.08873962]
[1758348933199,1.54047912,115840.0,115830.0,0.08873962]
[1758348939104,1.86291981,115840.0,115830.0,0.08873962]
[1758348940607,1.86291929,115840.0,115830.0,0.08873962]
[1758348943316,1.86291929,115840.0,115830.0,0.08842369]
[1758348944058,1.5404786,115840.0,115830.0,0.08842369]
[1758348945718,1.86291929,115840.0,115830.0,0.08842369]
[1758348947814,1.54053624,115840.0,115830.0,0.08842369]
[1758348955138,1.51394602,115840.0,115830.0,0.08842369]
[1758348955345,1.54053624,115840.0,115830.0,0.08842369]
[1758348956360,1.24926624,115840.0,115830.0,0.11450369]
[1758348956577,0.86730722,115840.0,115830.0,0.11751369]
[1758348956793,1.18977673,115840.0,115830.0,0.11751369]
[1758348956970,1.19182673,115840.0,115830.0,0.11450369]
[1758348958079,1.21889673,115840.0,115830.0,0.11450369]
[1758348958289,1.21889673,115840.0,115830.0,0.11241369]
[1758348958453,1.19497673,115840.0,115830.0,0.11241369]
[1758348962214,1.19497673,115840.0,115830.0,0.11438369]
[1758348962424,0.39990507,115840.0,115830.0,0.3069172]
[1758348962624,0.63432719,115840.0,115830.0,0.28965052]
[1758348963082,0.97432719,115840.0,115830.0,0.28965052]
[1758348964779,0.97432719,115840.0,115830.0,0.55775052]
[1758348967839,0.65185768,115840.0,115830.0,0.55775052]
[1758348968112,0.97432719,115840.0,115830.0,0.55775052]
[1758348975053,0.96824914,115840.0,115830.0,0.55775052]
[1758348975255,0.97431629,115840.0,115830.0,0.55775052]
[1758348980377,0.97631629,115840.0,115830.0,0.55482052]
[1758348980581,0.97930629,115840.0,115830.0,0.55482052]
[1758348981654,0.97631629,115840.0,115830.0,0.55482052]
[1758348983045,0.97631629,115840.0,115830.0,0.53116052]
[1758348983254,0.97431629,115840.0,115830.0,0.55775052]
[1758348984491,0.65184678,115840.0,115830.0,0.55775052]
[1758348984698,0.97431629,115840.0,115830.0,0.55775052]
[1758348987587,0.70615629,115840.0,115830.0,0.55775052]
[1758348993980,0.38368678,115840.0,115830.0,0.55775052]
[1758348994176,0.70615629,115840.0,115830.0,0.55775052]
[1758348994382,0.70825629,115840.0,115830.0,0.55775052]
[1758348994586,0.70825629,115840.0,115830.0,0.55482052]
[1758349008931,0.38368678,115840.0,115830.0,0.53410052]
[1758349009093,0.70615629,115840.0,115830.0,0.55893052]
[1758349009294,0.70825629,115840.0,115830.0,0.55599052]
[1758349009936,1.03052928,115840.0,115830.0,0.55599052]
[1758349011528,1.03358928,115840.0,115830.0,0.55599052]
[1758349011895,1.05768928,115840.0,115830.0,0.52919052]
[1758349012307,1.03358928,115840.0,115830.0,0.55603052]
[1758349013390,1.03052928,115840.0,115830.0,0.55603052]
[1758349019499,1.03053739,115840.0,115830.0,0.55603052]
[1758349021910,1.03358739,115840.0,115830.0,0.55603052]
[1758349022338,1.05739739,115840.0,115830.0,0.55603052]
[1758349027533,1.03358739,115840.0,115830.0,0.55603052]
[1758349033100,1.05739739,115840.0,115830.0,0.55603052]
[1758349033513,1.05739738,115840.0,115830.0,0.55603052]
[1758349035912,1.03358738,115840.0,115830.0,0.55603052]
[1758349048525,1.05830738,115840.0,115830.0,0.55603052]
[1758349053429,1.05830923,115840.0,115830.0,0.55603052]